bitfinex/quotes_SOLUSD_20250514
["timestamp","ask_amount","ask_price","bid_price","bid_amount"]
[1747207508930,13.7491063,181.83,181.76,1.6505]
[1747207509107,13.7491063,181.83,181.8,13.4113163]
[1747207509312,13.7491063,181.83,181.81,13.4113163]
[1747207511134,27.1604226,181.83,181.78,13.4113163]
[1747207511520,19.24874882,181.83,181.79,13.4113163]
[1747207511706,46.74696143,181.83,181.8,13.4113163]
[1747207512029,46.74696143,181.83,181.82,13.4113163]
[1747207512236,19.24874882,181.83,181.82,13.4113163]
[1747207512436,19.24874882,181.83,181.76,1.6505]
[1747207512613,13.4113163,181.81,181.76,15.0618163]
[1747207512806,13.4113163,181.8,181.71,1.5778]
[1747207513012,13.4113163,181.8,181.74,13.4113163]
[1747207513203,39.4113163,181.8,181.74,13.4113163]
[1747207513408,26.0,181.8,181.73,13.4113163]
[1747207513608,19.25510259,181.77,181.74,13.4113163]
[1747207514040,46.76239202,181.77,181.71,1.5778]
[1747207514342,13.4113163,181.75,181.66,1.5057]
[1747207514506,33.5713163,181.74,181.69,13.4113163]
[1747207514928,13.4113163,181.72,181.61,6.2398]
[1747207515247,13.4113163,181.67,181.6,1.5871]
[1747207515443,20.18,181.66,181.62,13.4113163]
[1747207515613,5.50509221,181.65,181.54,1.5839]
[1747207515812,5.50509221,181.65,181.64,13.4113163]
[1747207516116,19.26782273,181.65,181.54,1.5839]
[1747207516436,19.26782273,181.65,181.64,13.4113163]
[1747207516827,19.26782273,181.65,181.54,1.5839]
[1747207516828,46.79328378,181.65,181.54,1.5839]
[1747207517043,19.26782273,181.65,181.56,26.0]
[1747207517222,19.26782273,181.65,181.64,13.4113163]
[1747207517752,19.26040061,181.72,181.64,13.4113163]
[1747207518061,66.97525863,181.72,181.69,13.4113163]
[1747207518226,46.77525863,181.72,181.7,13.4113163]
[1747207518425,46.77525863,181.72,181.63,0.28432314]
[1747207518426,46.77525863,181.72,181.71,13.4113163]
[1747207518616,19.26040061,181.72,181.71,13.4113163]
[1747207519240,19.26040061,181.72,181.67,1.5736]
[1747207519717,61.13860573,181.77,181.67,1.5736]
[1747207519718,19.25722145,181.75,181.71,13.4113163]
[1747207519922,19.25722145,181.75,181.73,13.4113163]
[1747207520615,19.25722145,181.75,181.74,13.4113163]
[1747207521020,5.50206327,181.75,181.74,13.4113163]
[1747207521529,5.50206327,181.75,181.71,13.4113163]
[1747207521838,5.50206327,181.75,181.67,1.5736]
[1747207521839,13.4113163,181.75,181.67,1.5736]
[1747207522016,13.4113163,181.74,181.69,13.4113163]
[1747207522223,13.4113163,181.73,181.68,13.4113163]
[1747207522636,13.4113163,181.72,181.67,13.4113163]
[1747207522839,13.4113163,181.74,181.69,13.4113163]
[1747207523036,13.4113163,181.74,181.62,14.9201163]
[1747207523037,26.0,181.79,181.71,13.4113163]
[1747207523224,33.1313163,181.77,181.72,13.4113163]
[1747207523533,13.4113163,181.75,181.7,13.4113163]
[1747207523847,19.25828105,181.74,181.7,13.4113163]
[1747207524835,46.77011113,181.74,181.69,13.4113163]
[1747207525036,13.4113163,181.72,181.67,13.4113163]
[1747207525247,33.8713163,181.71,181.66,13.4113163]
[1747207525433,13.4113163,181.7,181.62,1.5088]
[1747207525635,19.26464111,181.68,181.64,13.4113163]
[1747207525851,19.26464111,181.68,181.65,13.4113163]
[1747207526365,19.26464111,181.68,181.64,13.4113163]
[1747207526851,32.67595741,181.68,181.63,13.4113163]
[1747207527051,13.4113163,181.67,181.56,1.5955]
[1747207527223,13.4113163,181.67,181.61,13.4113163]
[1747207527553,13.4113163,181.66,181.56,27.5955]
[1747207527733,19.26782273,181.65,181.63,13.4113163]
[1747207527926,20.5,181.64,181.62,13.4113163]
[1747207528562,20.5,181.64,181.6,13.4113163]
[1747207528882,46.79328378,181.65,181.62,13.4113163]
[1747207529059,19.26782273,181.65,181.64,13.4113163]
[1747207529226,39.74782273,181.65,181.64,13.4113163]
[1747207529863,19.26782273,181.65,181.64,13.4113163]
[1747207531330,19.26782273,181.65,181.56,27.5955]
[1747207531831,19.26782273,181.65,181.62,13.4113163]
[1747207532757,19.26782273,181.65,181.63,13.4113163]
[1747207533456,19.26782273,181.65,181.57,0.14216157]
[1747207533635,19.26782273,181.65,181.64,13.4113163]
[1747207533833,13.76273052,181.65,181.64,13.4113163]
[1747207534229,13.76273052,181.65,181.57,0.28432314]
[1747207534433,13.76273052,181.65,181.64,13.4113163]
[1747207535380,13.76273052,181.65,181.58,26.0]
[1747207535580,13.76273052,181.65,181.64,13.4113163]
[1747207536182,13.76273052,181.65,181.63,13.4113163]
[1747207537363,13.76273052,181.65,181.62,13.4113163]
[1747207537881,13.76273052,181.65,181.56,1.5955]
[1747207537882,13.76273052,181.65,181.63,13.4113163]
[1747207538190,13.76273052,181.65,181.56,1.5955]
[1747207538386,13.76273052,181.65,181.61,13.4113163]
[1747207539152,13.76273052,181.65,181.56,1.5955]
[1747207539494,13.76273052,181.65,181.6,13.4113163]
[1747207539662,13.76273052,181.65,181.56,1.5955]
[1747207539663,27.17404682,181.65,181.56,1.5955]
[1747207539867,13.4113163,181.64,181.59,13.4113163]
[1747207540887,46.79843636,181.63,181.58,13.4113163]
[1747207541255,46.79843636,181.63,181.56,1.5955]
[1747207541473,46.79843636,181.63,181.58,13.4113163]
[1747207541977,46.79843636,181.63,181.62,13.4113163]
[1747207541978,19.26994438,181.63,181.62,13.4113163]
[1747207542175,39.90994438,181.63,181.61,13.4113163]
[1747207542378,39.90994438,181.63,181.56,1.5955]
[1747207542577,39.90994438,181.63,181.61,13.4113163]
[1747207542781,67.43843636,181.63,181.56,1.5955]
[1747207543174,67.43843636,181.63,181.59,13.4113163]
[1747207543365,67.43843636,181.63,181.6,13.4113163]
[1747207543566,39.90994438,181.63,181.56,1.5955]
[1747207543872,39.90994438,181.63,181.62,13.4113163]
[1747207544178,39.90994438,181.63,181.61,13.4113163]
[1747207544580,19.26994438,181.63,181.62,13.4113163]
[1747207545391,13.76424599,181.63,181.62,13.4113163]
[1747207546374,13.76424599,181.63,181.56,1.5955]
[1747207546585,13.76424599,181.63,181.62,13.4113163]
[1747207547258,5.50539528,181.64,181.62,13.4113163]
[1747207547459,5.50539528,181.64,181.63,13.4113163]
[1747207548864,5.50418317,181.68,181.63,13.4113163]
[1747207549164,5.50418317,181.68,181.62,6.1089]
[1747207549472,5.50418317,181.68,181.67,13.4113163]
[1747207550873,19.25934077,181.73,181.67,13.4113163]
[1747207551290,19.25934077,181.73,181.7,13.4113163]
[1747207551496,19.25934077,181.73,181.66,1.6484]
[1747207551694,19.25934077,181.73,181.7,13.4113163]
[1747207552075,46.77268474,181.73,181.66,1.6484]
[1747207552273,46.77268474,181.73,181.7,13.4113163]
[1747207553543,60.18400104,181.73,181.66,1.6484]
[1747207553687,46.77268474,181.73,181.69,13.4113163]
[1747207555020,13.4113163,181.71,181.59,27.5676]
[1747207555300,13.4113163,181.7,181.65,13.4113163]
[1747207555797,74.28602871,181.73,181.65,13.4113163]
[1747207555978,13.4113163,181.72,181.67,13.4113163]
[1747207556181,13.4113163,181.72,181.66,13.4113163]
[1747207557185,19.26146056,181.71,181.66,13.4113163]
[1747207557488,46.7778328,181.71,181.67,13.4113163]
[1747207558602,46.7778328,181.71,181.68,13.4113163]
[1747207559293,41.27455836,181.71,181.68,13.4113163]
[1747207560574,41.27455836,181.71,181.69,13.4113163]
[1747207561182,41.27455836,181.71,181.7,13.4113163]
[1747207561183,13.75818612,181.71,181.7,13.4113163]
[1747207563615,19.25722145,181.75,181.7,13.4113163]
[1747207563914,19.25722145,181.75,181.74,13.4113163]
[1747207564286,5.50206327,181.75,181.74,13.4113163]
[1747207564910,18.67681367,181.81,181.74,13.4113163]
[1747207564911,5.50145788,181.77,181.74,13.4113163]
[1747207565081,5.50145788,181.77,181.76,13.4113163]
[1747207565690,13.75103692,181.81,181.76,13.4113163]
[1747207566028,13.75103692,181.81,181.8,13.4113163]
[1747207566493,13.75103692,181.81,181.75,26.0]
[1747207566692,13.75103692,181.81,181.8,13.4113163]
[1747207567000,5.49964252,181.83,181.8,26.8226326]
[1747207567194,5.49964252,181.83,181.82,13.4113163]
[1747207567798,19.24239924,181.89,181.82,13.4113163]
[1747207568106,19.24239924,181.89,181.88,13.4113163]
[1747207568310,19.24239924,181.89,181.87,13.4113163]
[1747207569595,13.4113163,181.88,181.81,13.4113163]
[1747207569803,13.4113163,181.86,181.81,13.4113163]
[1747207570001,32.6558316,181.87,181.82,13.4113163]
[1747207571717,60.14799633,181.87,181.82,13.4113163]
[1747207574705,13.4113163,181.84,181.79,13.4113163]
[1747207574925,33.7913163,181.84,181.79,13.4113163]
[1747207575308,74.22884476,181.87,181.83,13.4113163]
[1747207575517,74.22884476,181.87,181.85,13.4113163]
[1747207575907,74.22884476,181.87,181.83,13.4113163]
[1747207576107,87.64016106,181.87,181.82,13.4113163]
[1747207576304,87.64016106,181.87,181.81,13.4113163]
[1747207576933,87.64016106,181.87,181.76,26.0]
[1747207577117,87.64016106,181.87,181.81,13.4113163]
[1747207579126,13.4113163,181.85,181.75,26.0]
[1747207579325,13.4113163,181.84,181.79,13.4113163]
[1747207579542,32.1205,181.86,181.8,13.4113163]
[1747207579543,45.5318163,181.86,181.8,13.4113163]
[1747207580117,26.0,181.86,181.83,13.4113163]
[1747207580514,74.22884476,181.87,181.83,13.4113163]
[1747207580736,74.22884476,181.87,181.85,13.4113163]
[1747207580737,94.48884476,181.87,181.85,13.4113163]
[1747207581059,107.90016106,181.87,181.82,13.4113163]
[1747207581545,107.90016106,181.87,181.8,13.4113163]
[1747207581546,13.4113163,181.85,181.8,13.4113163]
[1747207582940,19.24769026,181.84,181.8,13.4113163]
[1747207583648,19.24769026,181.84,181.81,13.4113163]
[1747207583819,19.24769026,181.84,181.83,13.4113163]
[1747207584947,74.22884476,181.87,181.75,26.28432314]
[1747207585242,74.22884476,181.87,181.82,13.4113163]
[1747207585423,87.64016106,181.87,181.75,26.0]
[1747207585622,87.64016106,181.87,181.81,13.4113163]
[1747207585623,13.4113163,181.86,181.81,13.4113163]
[1747207586039,74.22884476,181.87,181.83,13.4113163]
[1747207586248,6.1567,181.83,181.67,1.5542]
[1747207586452,13.4113163,181.8,181.74,13.4113163]
[1747207586655,33.5713163,181.8,181.74,13.4113163]
[1747207586833,46.75724737,181.79,181.69,26.0]
[1747207587034,46.75724737,181.79,181.67,1.5542]
[1747207587247,46.75724737,181.79,181.75,13.4113163]
[1747207587635,46.75724737,181.79,181.74,13.4113163]
[1747207589357,46.75724737,181.79,181.75,13.4113163]
[1747207590534,46.75724737,181.79,181.77,13.4113163]
[1747207590739,46.75724737,181.79,181.78,13.4113163]
[1747207591033,19.25298421,181.79,181.78,13.4113163]
[1747207592851,60.1608488,181.82,181.75,1.6428]
[1747207593039,60.1608488,181.82,181.76,13.4113163]
[1747207593245,13.4113163,181.81,181.71,15.0774163]
[1747207593563,13.4113163,181.81,181.76,13.4113163]
[1747207594352,19.25192518,181.8,181.76,13.4113163]
[1747207594767,60.16599175,181.8,181.71,1.6661]
[1747207594968,60.16599175,181.8,181.75,13.4113163]
[1747207595663,46.75467545,181.8,181.76,13.4113163]
[1747207595847,46.75467545,181.8,181.71,27.6661]
[1747207596173,46.75467545,181.8,181.77,13.4113163]
[1747207597053,46.75467545,181.8,181.78,13.4113163]
[1747207598473,46.75467545,181.8,181.77,13.4113163]
[1747207600961,46.75467545,181.8,181.76,13.4113163]
[1747207601352,46.75467545,181.8,181.77,13.4113163]
[1747207602672,46.75467545,181.8,181.76,13.4113163]
[1747207603051,46.75467545,181.8,181.77,13.4113163]
[1747207604174,46.75467545,181.8,181.78,13.4113163]
[1747207604383,41.2541254,181.8,181.77,13.4113163]
[1747207604751,13.4113163,181.79,181.71,1.6661]
[1747207604972,13.4113163,181.78,181.73,13.4113163]
[1747207605283,8.39298492,181.78,181.73,8.39298492]
[1747207605464,8.39298492,181.78,181.74,8.39298492]
[1747207605654,8.39298492,181.79,181.74,8.39298492]
[1747207605853,8.39298492,181.78,181.73,8.39298492]
[1747207606055,8.39298492,181.77,181.72,8.39298492]
[1747207606483,19.25616196,181.76,181.72,8.39298492]
[1747207607070,19.25616196,181.76,181.73,8.39298492]
[1747207607278,19.25616196,181.76,181.73,13.42905635]
[1747207607774,19.25616196,181.76,181.75,13.42905635]
[1747207608272,5.50176056,181.76,181.75,13.42905635]
[1747207608485,19.25334692,181.79,181.75,13.42905635]
[1747207608672,19.25334692,181.79,181.78,13.42905635]
[1747207609379,49.25334692,181.79,181.78,13.42905635]
[1747207611108,35.50085263,181.79,181.78,13.42905635]
[1747207611383,5.50085263,181.79,181.78,13.42905635]
[1747207611883,5.50085263,181.79,181.75,6.2702]
[1747207612078,5.50085263,181.79,181.78,13.42905635]
[1747207612280,5.50085263,181.79,181.75,6.2702]
[1747207612281,19.25298421,181.79,181.75,6.2702]
[1747207612455,19.25298421,181.79,181.78,13.42905635]
[1747207613069,46.74785183,181.83,181.78,13.42905635]
[1747207613271,46.74785183,181.83,181.79,13.42905635]
[1747207613859,46.74785183,181.83,181.71,15.09515635]
[1747207613860,13.42905635,181.81,181.71,15.09515635]
[1747207614076,46.74785183,181.83,181.75,13.42905635]
[1747207614077,13.42905635,181.79,181.75,13.42905635]
[1747207614557,13.42905635,181.8,181.75,13.42905635]
[1747207614765,13.42905635,181.8,181.76,13.42905635]
[1747207615164,5.50085263,181.79,181.76,13.42905635]
[1747207616382,13.42905635,181.77,181.64,18.64964886]
[1747207616581,32.96905635,181.76,181.71,13.42905635]
[1747207616886,19.54,181.76,181.71,13.42905635]
[1747207617185,19.25722145,181.75,181.72,13.42905635]
[1747207617400,46.76753781,181.75,181.71,13.42905635]
[1747207617769,46.76753781,181.75,181.67,26.0]
[1747207617974,46.76753781,181.75,181.71,13.42905635]
[1747207618192,46.76753781,181.75,181.7,13.42905635]
[1747207618373,60.19659416,181.75,181.69,13.42905635]
[1747207620500,46.76753781,181.75,181.71,13.42905635]
[1747207621485,60.19659416,181.75,181.63,1.6195]
[1747207621707,13.42905635,181.74,181.69,13.42905635]
[1747207622407,19.25934077,181.73,181.69,13.42905635]
[1747207624414,13.75667198,181.73,181.69,13.42905635]
[1747207624711,13.75667198,181.73,181.7,13.42905635]
[1747207625217,13.42905635,181.72,181.63,27.6195]
[1747207625400,58.86905635,181.71,181.57,1.6484]
[1747207625585,13.42905635,181.65,181.6,13.42905635]
[1747207625785,13.42905635,181.65,181.57,1.6484]
[1747207625992,19.7,181.66,181.6,13.42905635]
[1747207626708,19.26888349,181.64,181.59,13.42905635]
[1747207626879,19.26888349,181.64,181.6,13.42905635]
[1747207627486,60.22491627,181.64,181.57,1.6484]
[1747207627686,60.22491627,181.64,181.59,13.42905635]
[1747207628491,60.22491627,181.64,181.57,1.6484]
[1747207628694,60.22491627,181.64,181.59,13.42905635]
[1747207629212,13.42905635,181.62,181.52,10.2391199]
[1747207629415,8.40782402,181.62,181.57,8.40782402]
[1747207629614,66.25585992,181.64,181.58,8.40782402]
[1747207629615,8.40782402,181.63,181.58,8.40782402]
[1747207629785,8.40782402,181.63,181.57,8.40782402]
[1747207630617,19.27100539,181.62,181.57,8.40782402]
[1747207630925,5.50600154,181.62,181.61,8.40782402]
[1747207631485,5.50600154,181.62,181.53,13.36557588]
[1747207631800,5.50600154,181.62,181.6,8.40782402]
[1747207632505,5.50600154,181.62,181.61,8.40782402]
[1747207632702,13.76457642,181.63,181.61,8.40782402]
[1747207632909,5.50539528,181.64,181.62,8.40782402]
[1747207633098,5.50539528,181.64,181.63,8.40782402]
[1747207633896,5.50418317,181.68,181.63,8.40782402]
[1747207634102,5.50418317,181.68,181.67,8.40782402]
[1747207634825,19.26082513,181.72,181.67,8.40782402]
[1747207635033,19.26082513,181.72,181.69,8.40782402]
[1747207636167,19.26082513,181.72,181.68,8.40782402]
[1747207636723,19.26082513,181.72,181.69,8.40782402]
[1747207637334,19.26082513,181.72,181.69,13.43495952]
[1747207637535,19.26082513,181.72,181.68,13.43495952]
[1747207637822,19.26082513,181.72,181.62,13.43495952]
[1747207638028,19.26082513,181.72,181.69,13.43495952]
[1747207639937,19.26082513,181.72,181.68,13.43495952]
[1747207640147,13.43495952,181.69,181.6,26.0]
[1747207640312,13.43495952,181.68,181.63,13.43495952]
[1747207640516,13.43495952,181.67,181.62,13.43495952]
[1747207640929,18.64964886,181.71,181.62,13.43495952]
[1747207641151,13.43495952,181.68,181.63,13.43495952]
[1747207641335,18.64964886,181.71,181.57,7.8514]
[1747207641511,13.43495952,181.68,181.63,13.43495952]
[1747207641831,13.43495952,181.7,181.65,13.43495952]
[1747207642144,19.26358081,181.69,181.57,7.8514]
[1747207642468,19.26358081,181.69,181.65,13.43495952]
[1747207642628,32.69854033,181.69,181.57,7.8514]
[1747207642828,32.69854033,181.69,181.64,13.43495952]
[1747207643018,32.69854033,181.69,181.57,7.8514]
[1747207643219,32.69854033,181.69,181.64,13.43495952]
[1747207643747,19.26358081,181.69,181.64,13.43495952]
[1747207644446,32.69854033,181.69,181.64,13.43495952]
[1747207644952,32.69854033,181.69,181.63,13.43495952]
[1747207645149,32.69854033,181.69,181.64,13.43495952]
[1747207646440,13.43495952,181.66,181.57,7.8514]
[1747207646643,13.43495952,181.65,181.57,1.6003]
[1747207646822,13.43495952,181.65,181.6,13.43495952]
[1747207647227,13.43495952,181.63,181.58,13.43495952]
[1747207647539,13.43495952,181.65,181.6,13.43495952]
[1747207647740,39.16535952,181.67,181.61,13.43495952]
[1747207648050,13.43495952,181.66,181.61,13.43495952]
[1747207648241,39.16535952,181.67,181.61,13.43495952]
[1747207648432,19.26676207,181.66,181.61,13.43495952]
[1747207650345,32.70172159,181.66,181.61,13.43495952]
[1747207650829,13.43495952,181.65,181.6,13.43495952]
[1747207651649,13.43495952,181.62,181.57,13.43495952]
[1747207652160,19.2720665,181.61,181.56,13.43495952]
[1747207652318,32.70702602,181.61,181.55,13.43495952]
[1747207652853,13.43495952,181.58,181.52,8.6697199]
[1747207653030,38.7320665,181.61,181.53,13.43495952]
[1747207653347,13.43495952,181.58,181.53,13.43495952]
[1747207653848,66.26359009,181.61,181.54,13.43495952]
[1747207654150,19.27525057,181.58,181.54,13.43495952]
[1747207655251,39.43495952,181.55,181.52,8.6697199]
[1747207655436,13.43495952,181.53,181.52,8.6697199]
[1747207656139,18.94369085,181.53,181.52,8.6697199]
[1747207656525,45.22801399,181.53,181.52,8.6697199]
[1747207656831,26.0,181.49,181.38,1.6373]
[1747207657030,26.0,181.49,181.4,13.43495952]
[1747207657337,13.43495952,181.45,181.4,13.43495952]
[1747207657537,20.16,181.44,181.38,1.6373]
[1747207657754,20.16,181.44,181.4,13.43495952]
[1747207657930,13.43495952,181.43,181.38,15.07225952]
[1747207658242,64.393972,181.49,181.42,13.43495952]
[1747207658243,20.18,181.45,181.42,13.43495952]
[1747207658422,20.18,181.45,181.43,13.43495952]
[1747207659040,32.72083123,181.48,181.38,1.6373]
[1747207659216,20.16,181.47,181.38,1.6373]
[1747207659419,13.43495952,181.46,181.38,1.6373]
[1747207659614,13.43495952,181.46,181.41,13.43495952]
[1747207659840,20.16,181.47,181.38,1.6373]
[1747207660043,20.16,181.47,181.28,4.96443385]
[1747207660044,26.0,181.43,181.28,4.96443385]
[1747207660236,13.43495952,181.37,181.27,1.6343]
[1747207660543,20.38,181.36,181.27,1.6343]
[1747207660742,20.38,181.36,181.33,13.43495952]
[1747207660953,20.38,181.36,181.27,1.6343]
[1747207661120,20.38,181.36,181.33,13.43495952]
[1747207662051,19.29225002,181.42,181.35,13.43495952]
[1747207662346,33.87495952,181.41,181.36,13.43495952]
[1747207662549,20.44,181.41,181.35,13.43495952]
[1747207662735,13.43495952,181.4,181.28,44.933972]
[1747207662934,13.43495952,181.4,181.34,13.43495952]
[1747207663122,13.43495952,181.4,181.28,44.933972]
[1747207663325,20.44,181.41,181.34,13.43495952]
[1747207663326,13.43495952,181.39,181.34,13.43495952]
[1747207663546,13.43495952,181.39,181.33,13.43495952]
[1747207663857,13.43495952,181.4,181.35,13.43495952]
[1747207664149,5.51298307,181.39,181.29,26.0]
[1747207664345,5.51298307,181.39,181.35,13.43495952]
[1747207664520,32.73040027,181.39,181.29,26.0]
[1747207664723,32.73040027,181.39,181.33,13.43495952]
[1747207665151,19.29544075,181.39,181.33,13.43495952]
[1747207665353,32.73040027,181.39,181.34,13.43495952]
[1747207665540,5.51298307,181.39,181.36,13.43495952]
[1747207665748,5.51298307,181.39,181.38,13.43495952]
[1747207666053,5.51298307,181.39,181.37,13.43495952]
[1747207666256,5.51267916,181.4,181.37,13.43495952]
[1747207666438,13.43495952,181.39,181.29,26.0]
[1747207666638,13.43495952,181.37,181.32,13.43495952]
[1747207666835,13.43495952,181.37,181.29,26.0]
[1747207667137,13.43495952,181.37,181.31,13.43495952]
[1747207667543,46.85777287,181.4,181.27,27.6343]
[1747207667544,13.43495952,181.39,181.34,13.43495952]
[1747207667748,20.66,181.38,181.34,13.43495952]
[1747207668252,5.513591,181.37,181.27,27.6343]
[1747207668452,5.513591,181.37,181.34,13.43495952]
[1747207668647,5.513591,181.37,181.27,27.6343]
[1747207668648,13.43495952,181.35,181.27,1.6343]
[1747207668827,13.43495952,181.35,181.28,26.0]
[1747207669034,32.73252802,181.37,181.32,13.43495952]
[1747207669250,5.513591,181.37,181.36,13.43495952]
[1747207670127,5.513591,181.37,181.27,6.59926474]
[1747207670128,5.513591,181.37,181.33,13.43495952]
[1747207670355,19.2975685,181.37,181.33,13.43495952]
[1747207670544,32.73252802,181.37,181.32,13.43495952]
[1747207670848,19.2975685,181.37,181.34,13.43495952]
[1747207671046,19.2975685,181.37,181.35,13.43495952]
[1747207671440,19.2975685,181.37,181.34,13.43495952]
[1747207672456,13.7839775,181.37,181.27,1.6343]
[1747207672645,13.43495952,181.36,181.31,13.43495952]
[1747207672962,13.7839775,181.37,181.34,13.43495952]
[1747207673152,13.7839775,181.37,181.33,13.43495952]
[1747207673536,13.7839775,181.37,181.27,1.6343]
[1747207673743,13.7839775,181.37,181.33,13.43495952]
[1747207674241,19.2975685,181.37,181.27,1.6343]
[1747207674436,32.73252802,181.37,181.27,1.6343]
[1747207674651,32.73252802,181.37,181.32,13.43495952]
[1747207674858,19.2975685,181.37,181.33,13.43495952]
[1747207675050,19.2975685,181.37,181.35,13.43495952]
[1747207675353,19.2975685,181.37,181.34,13.43495952]
[1747207675553,19.2975685,181.37,181.35,13.43495952]
[1747207675946,19.2975685,181.37,181.28,26.0]
[1747207675947,13.7839775,181.37,181.28,26.0]
[1747207676139,13.7839775,181.37,181.34,13.43495952]
[1747207676337,13.7839775,181.37,181.27,1.6343]
[1747207676538,27.21893702,181.37,181.27,1.6343]
[1747207676739,13.43495952,181.36,181.27,1.6343]
[1747207676939,13.43495952,181.34,181.29,13.43495952]
[1747207678051,19.30182539,181.33,181.29,13.43495952]
[1747207678577,32.73678491,181.33,181.23,20.36]
[1747207678779,13.43495952,181.31,181.26,13.43495952]
[1747207679137,13.43495952,181.31,181.21,1.5326]
[1747207679571,34.31495952,181.32,181.26,13.43495952]
[1747207679744,20.88,181.32,181.28,13.43495952]
[1747207680150,60.31599199,181.31,181.21,1.5326]
[1747207680341,13.43495952,181.3,181.25,13.43495952]
[1747207680640,19.30395454,181.31,181.29,13.43495952]
[1747207680967,19.30395454,181.31,181.3,13.43495952]
[1747207681137,19.30395454,181.31,181.22,26.0]
[1747207681338,19.30395454,181.31,181.3,13.43495952]
[1747207681552,19.30395454,181.31,181.21,1.5326]
[1747207681741,32.73891406,181.31,181.21,1.5326]
[1747207681959,13.43495952,181.3,181.25,13.43495952]
[1747207682159,19.30608416,181.29,181.21,1.5326]
[1747207682569,19.30608416,181.29,181.24,13.43495952]
[1747207682859,13.43495952,181.28,181.23,13.43495952]
[1747207683041,20.96,181.27,181.23,13.43495952]
[1747207683239,20.96,181.27,181.18,21.9362]
[1747207683464,34.39495952,181.27,181.18,21.9362]
[1747207683672,20.96,181.27,181.22,13.43495952]
[1747207683861,19.30608416,181.29,181.05,1.6527]
[1747207683862,26.0,181.16,181.05,1.6527]
[1747207684061,20.94,181.15,181.06,13.43495952]
[1747207684370,13.43495952,181.12,181.06,13.43495952]
[1747207684668,13.43495952,181.13,181.07,13.43495952]
[1747207684840,19.32207131,181.14,181.11,13.43495952]
[1747207685063,19.32207131,181.14,181.09,13.43495952]
[1747207686006,19.32207131,181.14,181.05,1.6527]
[1747207686162,5.51998233,181.16,181.13,13.43495952]
[1747207686360,5.51998233,181.16,181.08,13.43495952]
[1747207687067,5.51998233,181.16,181.15,13.43495952]
[1747207688362,19.31724723,181.19,181.15,13.43495952]
[1747207688563,16.52,181.34,181.15,13.43495952]
[1747207688564,6.5171,181.29,181.18,13.43495952]
[1747207688758,19.95205952,181.29,181.24,13.43495952]
[1747207689569,13.79082082,181.28,181.26,13.43495952]
[1747207689772,13.79082082,181.28,181.18,6.3643]
[1747207689991,13.79082082,181.28,181.26,13.43495952]
[1747207690872,13.79082082,181.28,181.25,13.43495952]
[1747207691066,13.79082082,181.28,181.24,13.43495952]
[1747207691581,13.43495952,181.26,181.21,13.43495952]
[1747207691976,20.94,181.25,181.15,1.5852]
[1747207692175,13.43495952,181.21,181.16,13.43495952]
[1747207692599,19.31567328,181.2,181.1,6.1857]
[1747207692796,19.31567328,181.2,181.02,33.36950814]
[1747207692797,13.43495952,181.18,181.11,1.6288]
[1747207693102,41.82,181.17,181.11,1.6288]
[1747207693305,13.43495952,181.18,181.07,1.6288]
[1747207693512,20.94,181.16,181.13,13.43495952]
[1747207694298,34.37495952,181.16,181.07,1.6288]
[1747207694497,34.37495952,181.16,181.11,13.43495952]
[1747207694799,19.32100468,181.15,181.11,13.43495952]
[1747207695573,19.32100468,181.15,181.14,13.43495952]
[1747207695775,5.52028705,181.15,181.14,13.43495952]
[1747207696395,5.52028705,181.15,181.08,13.43495952]
[1747207696695,34.73866089,181.18,181.14,13.43495952]
[1747207696900,19.31887177,181.17,181.13,13.43495952]
[1747207697196,19.31887177,181.17,181.15,13.43495952]
[1747207697775,19.31887177,181.17,181.08,13.43495952]
[1747207698004,19.31887177,181.17,181.15,13.43495952]
[1747207698210,19.31887177,181.17,181.14,13.43495952]
[1747207698382,32.75383129,181.17,181.12,13.43495952]
[1747207698992,13.43495952,181.16,181.07,1.6288]
[1747207699296,13.43495952,181.16,181.11,13.43495952]
[1747207699680,13.43495952,181.14,181.07,1.6288]
[1747207700000,46.92243995,181.15,181.1,13.43495952]
[1747207701092,46.92243995,181.15,181.11,13.43495952]
[1747207701590,19.32100468,181.15,181.11,13.43495952]
[1747207701795,19.32100468,181.15,181.12,13.43495952]
[1747207702104,19.32100468,181.15,181.13,13.43495952]
[1747207702304,19.32100468,181.15,181.12,13.43495952]
[1747207704022,19.32100468,181.15,181.07,1.6288]
[1747207704792,19.32100468,181.15,181.12,13.43495952]
[1747207704998,19.32100468,181.15,181.07,1.6288]
[1747207705180,32.7559642,181.15,181.07,1.6288]
[1747207705387,32.7559642,181.15,181.1,13.43495952]
[1747207705689,32.7559642,181.15,181.11,13.43495952]
[1747207705690,19.32100468,181.15,181.11,13.43495952]
[1747207706495,13.43495952,181.14,181.03,1.5049]
[1747207706813,32.7559642,181.15,181.1,13.43495952]
[1747207707431,19.32100468,181.15,181.03,1.5049]
[1747207707638,60.35739947,181.15,181.03,1.5049]